[Event "DVM U20 2019"]
[Site "Braunschweig"]
[Date "2019.12.30"]
[Round "7"]
[White "Engel, Luis"]
[Black "Stelmaszyk, Nico"]
[Result "1-0"]
[ECO "C70"]
[WhiteElo "2531"]
[BlackElo "2193"]
[Annotator "ChessBase"]
[PlyCount "62"]
[EventDate "2019.12.27"]
[EventType "team-tourn"]
[EventRounds "7"]
[EventCountry "GER"]
[SourceTitle "playchess.com"]
[Source "ChessBase"]
[SourceQuality "1"]
[WhiteTeam "Hamburger SK"]
[BlackTeam "SK Lehrte 1919"]
[TimeControl "40/5400+30:1800+30"]

1. e4 {[%emt 0:00:00]} e5 {[%emt 0:00:00]} 2. Nf3 {[%emt 0:00:00]} Nc6 {[%emt 0:00:00]} 3. Bb5 {[%emt 0:00:00]} a6 {[%emt 0:00:00]} 4. Ba4 {[%emt 0:00:00]} b5 {[%emt 0:00:00]} 5. Bb3 {[%emt 0:00:00]} g6 {[%emt 0:00:00]} 6. a4 {[%emt 0:00:11]} b4 {[%emt 0:00:01]} 7. d4 {[%emt 0:00:06]} exd4 {[%emt 0:00:03]} 8. Nxd4 {[%emt 0:00:07]} Na5 {[%emt 0:00:05]} 9. Bd5 {[%emt 0:00:08]} c6 {[%emt 0:00:06]} 10. Ba2 {[%emt 0:00:05]} Bg7 {[%emt 0:00:05]} 11. O-O {[%emt 0:00:17]} Ne7 {[%emt 0:01:03]} 12. c3 {[%emt 0:00:06]} Rb8 {[%emt 0:00:05]} 13. cxb4 {[%emt 0:00:31]} Rxb4 {[%emt 0:00:07]} 14. Nc2 {[%emt 0:00:07]} Rxe4 {[%emt 0:09:55]} 15. Nd2 {[%emt 0:00:07]} Re5 {[%emt 0:01:40]} 16. b4 {[%emt 0:07:30]} Nb7 {[%emt 0:03:13]} 17. Bb2 {[%emt 0:00:10]} O-O {[%emt 0:03:57]} 18. Bxe5 {[%emt 0:01:22]} Bxe5 {[%emt 0:00:05]} 19. Rb1 {[%emt 0:00:34]} d5 {[%emt 0:01:14]} 20. Qe2 {[%emt 0:06:55]} Bg7 {[%emt 0:02:57]} 21. Rfe1 {[%emt 0:04:44]} Nf5 {[%emt 0:07:07]} 22. Qxa6 {[%emt 0:04:28]} Nh4 {[%emt 0:07:03]} 23. Qxc6 {[%emt 0:04:20]} Nxg2 {[%emt 0:02:23]} 24. Kxg2 {[%emt 0:01:02]} Qg5+ {[%emt 0:00:10]} 25. Kh1 {[%emt 0:00:12]} Qxd2 {[%emt 0:00:16]} 26. Bxd5 {[%emt 0:03:00]} Bf5 {[%emt 0:08:33]} 27. Be4 {[%emt 0:08:47]} Nd6 {[%emt 0:10:03]} 28. Bxf5 {[%emt 0:00:41]} Nxf5 {[%emt 0:00:06]} 29. b5 {[%emt 0:02:22]} Nh6 {[%emt 0:05:00]} 30. Ne3 {[%emt 0:03:07]} Qxf2 {[%emt 0:00:52] normal} 31. Qg2 {[%emt 0:00:52]} Qf4 {[%emt 0:00:31]} 1-0

[Event "DVM U20 2019"]
[Site "Braunschweig"]
[Date "2019.12.30"]
[Round "7"]
[White "Kololli, Martin"]
[Black "Wendler, David"]
[Result "1/2-1/2"]
[ECO "B22"]
[WhiteElo "2343"]
[BlackElo "2204"]
[Annotator "RC"]
[PlyCount "30"]
[EventDate "2019.12.27"]
[EventType "team-tourn"]
[EventRounds "7"]
[EventCountry "GER"]
[SourceTitle "playchess.com"]
[Source "ChessBase"]
[SourceQuality "1"]
[WhiteTeam "Lübecker SV"]
[BlackTeam "SK Bebenhausen"]
[TimeControl "40/5400+30:1800+30"]

1. e4 {[%emt 0:00:00]} c5 {[%emt 0:00:00]} 2. c3 {[%emt 0:00:00]} Nf6 {[%emt 0:00:00]} 3. e5 {[%emt 0:00:00]} Nd5 {[%emt 0:00:22]} 4. d4 {[%emt 0:00:00]} cxd4 {[%emt 0:00:08]} 5. Nf3 {[%emt 0:00:00]} Nc6 {[%emt 0:00:13]} 6. cxd4 {[%emt 0:00:00]} d6 {[%emt 0:00:10]} 7. Bc4 {[%emt 0:00:00]} Nb6 {[%emt 0:00:59]} 8. Bb5 {[%emt 0:00:04]} dxe5 {[%emt 0:00:07]} 9. Nxe5 {[%emt 0:00:03]} Bd7 {[%emt 0:00:10]} 10. Nxd7 {[%emt 0:00:09]} Qxd7 {[%emt 0:00:05]} 11. Nc3 {[%emt 0:00:52]} e6 {[%emt 0:00:05]} 12. O-O {[%emt 0:00:08]} Rd8 {[%emt 0:00:35]} 13. Be3 {[%emt 0:03:30]} Be7 {[%emt 0:00:21]} 14. Qg4 {[%emt 0:02:36]} O-O {[%emt 0:08:45]} 15. Rad1 {[%emt 0:00:36]} Rfe8 {[%emt 0:05:39] normal} 1/2-1/2

[Event "DVM U20 2019"]
[Site "Braunschweig"]
[Date "2019.12.30"]
[Round "7"]
[White "Kueppers, Timo"]
[Black "Vuckovic, Zarko"]
[Result "1-0"]
[ECO "A21"]
[WhiteElo "2296"]
[BlackElo "2258"]
[Annotator "ChessBase"]
[PlyCount "31"]
[EventDate "2019.12.27"]
[EventType "team-tourn"]
[EventRounds "7"]
[EventCountry "GER"]
[SourceTitle "playchess.com"]
[Source "ChessBase"]
[SourceQuality "1"]
[WhiteTeam "SF Essen-Katernberg"]
[BlackTeam "SF Augsburg"]
[TimeControl "40/5400+30:1800+30"]

1. c4 {[%emt 0:00:00]} e5 {[%emt 0:00:00]} 2. Nc3 {[%emt 0:00:00]} Bb4 {[%emt 0:00:01]} 3. g3 {[%emt 0:01:48]} Bxc3 {[%emt 0:00:15]} 4. dxc3 {[%emt 0:00:39]} Nc6 {[%emt 0:00:06]} 5. Bg2 {[%emt 0:00:08]} d6 {[%emt 0:00:11]} 6. e4 {[%emt 0:01:03]} Be6 {[%emt 0:07:30]} 7. Qe2 {[%emt 0:01:38]} Na5 {[%emt 0:01:52]} 8. b3 {[%emt 0:04:32]} a6 {[%emt 0:00:04]} 9. Nf3 {[%emt 0:01:57]} b5 {[%emt 0:02:32]} 10. c5 dxc5 {[%emt 0:02:36]} 11. Nxe5 {[%emt 0:08:08]} Qf6 {[%emt 0:01:25]} 12. f4 {[%emt 0:01:09]} Nc6 13. Nxc6 {[%emt 0:46:09]} Qxc3+ {[%emt 0:07:21]} 14. Kf2 {[%emt 0:00:04]} Qxa1 {[%emt 0:00:05]} 15. Be3 {[%emt 0:03:40]} Qf6 {[%emt 0:00:59]} 16. Bxc5 {[%emt 0:00:59] normal} 1-0

[Event "DVM U20 2019"]
[Site "Braunschweig"]
[Date "2019.12.30"]
[Round "7"]
[White "Sieber, Fiona"]
[Black "Richter, Philipp"]
[Result "1/2-1/2"]
[ECO "C06"]
[WhiteElo "2277"]
[BlackElo "2084"]
[Annotator "NA"]
[PlyCount "59"]
[EventDate "2019.12.27"]
[EventType "team-tourn"]
[EventRounds "7"]
[EventCountry "GER"]
[SourceTitle "playchess.com"]
[Source "ChessBase"]
[SourceQuality "1"]
[WhiteTeam "SG Aufbau Elbe Magdeburg"]
[BlackTeam "USV TU Dresden"]
[TimeControl "40/5400+30:1800+30"]

1. e4 {[%emt 0:00:00]} e6 {[%emt 0:00:00]} 2. d4 {[%emt 0:00:00]} d5 {[%emt 0:00:00]} 3. Nd2 {[%emt 0:00:00]} Nf6 {[%emt 0:00:00]} 4. e5 {[%emt 0:00:00]} Nfd7 {[%emt 0:00:02]} 5. Bd3 {[%emt 0:00:00]} c5 {[%emt 0:00:07]} 6. c3 {[%emt 0:00:00]} Nc6 {[%emt 0:00:06]} 7. Ne2 {[%emt 0:00:01]} cxd4 {[%emt 0:00:07]} 8. cxd4 {[%emt 0:00:04]} f6 {[%emt 0:00:08]} 9. exf6 {[%emt 0:00:03]} Nxf6 {[%emt 0:00:09]} 10. Nf3 {[%emt 0:00:53]} Bd6 {[%emt 0:00:09]} 11. O-O {[%emt 0:00:08]} Qc7 {[%emt 0:00:05]} 12. Nc3 {[%emt 0:01:40]} a6 {[%emt 0:00:09]} 13. h3 {[%emt 0:02:58] C06: French Tarrasch: 3...Nf6 4 e5 Nfd7 5 Bd3 main lines} O-O {[%emt 0:00:10]} 14. Bd2 {[%emt 0:01:16]} Bd7 {[%emt 0:01:00]} 15. Re1 {[%emt 0:00:05]} Rae8 {[%emt 0:00:17] unterminated [#] unterminated} 16. a3 $146 {[%emt 0:02:34] unterminated} ({Predecessor:} 16. Rc1 Qb8 17. Na4 e5 18. dxe5 Nxe5 19. Nxe5 Bxe5 20. Be3 Bh2+ 21. Kh1 Bf4 22. Nc5 Bxe3 23. Rxe3 Rxe3 24. fxe3 {½-½ (39) Neiksans,A (2553)-Berg,E (2536) Sweden 2019}) 16... e5 {[%emt 0:07:30] unterminated} 17. Nxd5 {[%emt 0:42:50] unterminated} (17. dxe5 $11 Nxe5 18. Be3) 17... Nxd5 {[%emt 0:03:44]} 18. Bc4 {[%emt 0:00:03] unterminated} Be6 {[%emt 0:14:43] unterminated} ({Of course not} 18... Nxd4 $6 19. Bxd5+ Kh8 20. Rc1 $16) 19. Ng5 {[%emt 0:16:00] unterminated} Nxd4 {[%emt 0:22:26] unterminated} 20. Rc1 {[%emt 0:00:42] unterminated} Qe7 {[%emt 0:02:43] unterminated} 21. Nxe6 $11 {[%emt 0:01:03]} Qxe6 {[%emt 0:00:13]} 22. Be3 {[%emt 0:00:30]} Rc8 {[%emt 0:06:54]} 23. Bxd4 {[%emt 0:02:55]} Rxc4 {[%emt 0:00:07]} 24. Rxc4 {[%emt 0:01:17]} Nf4 {[%emt 0:00:13]} 25. Bc5 {[%emt 0:10:02]} Qxc4 {[%emt 0:00:49]} 26. Qxd6 {[%emt 0:00:23]} Re8 {[%emt 0:02:45]} 27. Qd7 {[%emt 0:02:39]} Qf7 {[%emt 0:01:19]} 28. Qxf7+ Kxf7 29. Rd1 {[%emt 0:01:28]} Kf6 {[%emt 0:03:11]} 30. Re1 {normal "DVM"] [Site "?"] [Date "2019. [Round "7. [White "Hoffmann, Jens"]} 1/2-1/2

[Event "DVM U20 2019"]
[Site "Braunschweig"]
[Date "2019.12.30"]
[Round "7"]
[White "Schneider, Jana"]
[Black "Kartsev, Nikolay"]
[Result "1-0"]
[ECO "B66"]
[WhiteElo "2210"]
[BlackElo "2092"]
[Annotator "ChessBase"]
[PlyCount "50"]
[EventDate "2019.12.27"]
[EventType "team-tourn"]
[EventRounds "7"]
[EventCountry "GER"]
[SourceTitle "playchess.com"]
[Source "ChessBase"]
[SourceQuality "1"]
[WhiteTeam "SC Bavaria Regensburg"]
[BlackTeam "SF Brackel"]
[TimeControl "40/5400+30:1800+30"]

1. e4 {[%emt 0:00:00]} c5 {[%emt 0:26:15]} 2. Nf3 {[%emt 0:00:00]} d6 {[%emt 0:00:07]} 3. d4 {[%emt 0:00:33]} cxd4 {[%emt 0:00:07]} 4. Nxd4 {[%emt 0:00:03]} Nf6 {[%emt 0:00:06]} 5. Nc3 {[%emt 0:00:06]} Nc6 {[%emt 0:00:08]} 6. Bg5 {[%emt 0:00:13]} e6 {[%emt 0:00:09]} 7. Qd2 {[%emt 0:00:53]} a6 {[%emt 0:00:07]} 8. f4 {[%emt 0:02:27]} h6 {[%emt 0:05:58]} 9. Bxf6 {[%emt 0:02:11]} Qxf6 {[%emt 0:02:06]} 10. Nf3 {[%emt 0:05:00]} Qd8 {[%emt 0:14:02]} 11. O-O-O {[%emt 0:07:23]} Be7 {[%emt 0:03:37]} 12. Kb1 {[%emt 0:06:06]} b5 {[%emt 0:08:47]} 13. Bd3 {[%emt 0:04:38]} Bd7 {[%emt 0:04:58]} 14. f5 {[%emt 0:02:57]} Ne5 {[%emt 0:03:15]} 15. fxe6 {[%emt 0:04:08]} Bxe6 {[%emt 0:01:21]} 16. Nd4 {[%emt 0:11:18]} Qb6 {[%emt 0:06:18]} 17. Nd5 {[%emt 0:02:37]} Bxd5 {[%emt 0:01:09]} 18. exd5 {[%emt 0:00:06]} O-O {[%emt 0:02:37]} 19. h4 {[%emt 0:08:24]} Bf6 {[%emt 0:02:37]} 20. Nf5 {[%emt 0:06:42]} h5 {[%emt 0:04:40]} 21. Qf4 {[%emt 0:05:17]} Ng4 {[%emt 0:02:58]} 22. Rhf1 g6 {[%emt 0:01:57]} 23. Nh6+ {[%emt 0:15:36]} Nxh6 {[%emt 0:00:02]} 24. Qxf6 {[%emt 0:00:16]} Ng4 {[%emt 0:00:16]} 25. Qg5 {[%emt 0:00:26] normal} Qe3 {[%emt 0:01:49] normal} 1-0

[Event "DVM U20 2019"]
[Site "Braunschweig"]
[Date "2019.12.30"]
[Round "7"]
[White "Fluechter, Gregor"]
[Black "Goldbeck, Lars"]
[Result "1-0"]
[ECO "B13"]
[WhiteElo "2174"]
[BlackElo "2312"]
[Annotator "NA"]
[PlyCount "69"]
[EventDate "2019.12.27"]
[EventType "team-tourn"]
[EventRounds "7"]
[EventCountry "GER"]
[SourceTitle "playchess.com"]
[Source "ChessBase"]
[SourceQuality "1"]
[WhiteTeam "SF Brackel"]
[BlackTeam "SC Bavaria Regensburg"]
[TimeControl "40/5400+30:1800+30"]

1. e4 {[%emt 0:00:00]} c6 {[%emt 0:00:00]} 2. d4 {[%emt 0:00:00]} d5 {[%emt 0:00:00]} 3. exd5 {[%emt 0:00:00]} cxd5 {[%emt 0:00:00]} 4. c4 {[%emt 0:00:08]} Nf6 {[%emt 0:00:00]} 5. Nc3 {[%emt 0:00:06]} Nc6 {[%emt 0:00:00]} 6. Bg5 {[%emt 0:00:02]} Ne4 {[%emt 0:00:01]} 7. Nxe4 {[%emt 0:00:43]} dxe4 {[%emt 0:00:02] unterminated} 8. d5 {[%emt 0:02:07]} Ne5 {[%emt 0:00:06] unterminated} 9. Qd4 {[%emt 0:26:24]} f6 {[%emt 0:01:25] unterminated} 10. Qxe4 {[%emt 0:26:03]} Qb6 {[%emt 0:00:07]} 11. Bd2 {[%emt 0:00:53] unterminated} e6 {[%emt 0:24:05]} 12. Be2 {[%emt 0:01:44] unterminated} Bc5 {[%emt 0:05:41] unterminated} 13. f4 {[%emt 0:12:25] unterminated} Bxg1 {[%emt 0:19:05]} 14. fxe5 {[%emt 0:00:03] unterminated} Bf2+ {[%emt 0:03:55]} 15. Kd1 {[%emt 0:00:02]} O-O {[%emt 0:02:25] unterminated} 16. Bd3 $11 {[%emt 0:00:55]} f5 {[%emt 0:00:01]} (16... g6 $1 $11) 17. Qe2 {[%emt 0:01:10]} Bd4 {[%emt 0:03:08]} 18. Rb1 {[%emt 0:04:31]} Qa6 {[%emt 0:04:43]} 19. a3 {[%emt 0:03:12]} Qa4+ {[%emt 0:09:34]} 20. Bc2 {[%emt 0:01:43]} Qd7 {[%emt 0:00:02]} 21. d6 {[%emt 0:00:55]} b5 {[%emt 0:02:26]} 22. cxb5 {[%emt 0:00:44]} Bb7 {[%emt 0:01:00]} 23. Re1 {[%emt 0:00:33]} Rac8 {[%emt 0:00:49]} 24. Bf4 {[%emt 0:02:50]} Rxc2 {[%emt 0:07:12]} 25. Kxc2 {[%emt 0:02:37]} Be4+ {[%emt 0:00:43]} 26. Kd2 {[%emt 0:00:45]} Qb7 {[%emt 0:02:50]} 27. Qc4 {[%emt 0:01:56]} Bf2 {[%emt 0:01:20]} 28. Rxe4 {[%emt 0:02:32]} fxe4 {[%emt 0:01:44]} 29. Be3 {[%emt 0:00:30]} Bxe3+ {[%emt 0:01:45]} 30. Kxe3 {[%emt 0:00:02]} Qb6+ {[%emt 0:00:01]} 31. Kd2 {[%emt 0:04:31]} Qf2+ {[%emt 0:02:03]} 32. Kc3 {[%emt 0:00:25]} Qe3+ {[%emt 0:01:30]} 33. Kb4 {[%emt 0:00:16]} Qd2+ {[%emt 0:00:29]} 34. Qc3 {[%emt 0:02:00]} Qd5 {[%emt 0:00:09]} 35. a4 {[%emt 0:01:03] normal} 1-0

[Event "DVM U20 2019"]
[Site "Braunschweig"]
[Date "2019.12.30"]
[Round "7"]
[White "Lutz, Ruben"]
[Black "Roseneck, Jonas"]
[Result "0-1"]
[ECO "A45"]
[WhiteElo "2132"]
[BlackElo "2417"]
[Annotator "NA"]
[PlyCount "64"]
[EventDate "2019.12.27"]
[EventType "team-tourn"]
[EventRounds "7"]
[EventCountry "GER"]
[SourceTitle "playchess.com"]
[Source "ChessBase"]
[SourceQuality "1"]
[WhiteTeam "USV TU Dresden"]
[BlackTeam "SG Aufbau Elbe Magdeburg"]
[TimeControl "40/5400+30:1800+30"]

{[%evp 11,61,-12,-9,0,-2,-1,32767,32767,32767,32767,-27,-26,-22,-26,32767,-16,-6,-20,-12,-114,-120,-134,-113,-147,-155,-165,-143,-166,-139,-143,-125,32767,32767,32767,32767,32767,32767,32767,32767,32767,32767,32767,32767,32767,32767,32767,32767,32767,-222,-278,-331,-334]} 1. d4 {[%emt 0:00:00]} Nf6 {[%emt 0:00:00]} 2. Bf4 {[%emt 0:00:00]} d5 {[%emt 0:00:00]} 3. e3 {[%emt 0:00:00]} c5 {[%emt 0:00:00]} 4. c3 {[%emt 0:00:00]} e6 {[%emt 0:00:05]} 5. Nd2 {[%emt 0:00:12]} Bd6 {[%emt 0:00:09] unterminated} 6. Bxd6 {[%emt 0:08:20] D00: 1 d4 d5: Unusual lines} Qxd6 {[%emt 0:00:02]} 7. f4 {[%emt 0:00:09] unterminated} O-O {[%emt 0:03:37] unterminated} 8. Bd3 {[%emt 0:01:04]} b6 {[%emt 0:01:59]} 9. Ngf3 {[%emt 0:03:12]} Ba6 {[%emt 0:00:27]} 10. Qe2 $146 {[%emt 0:00:54] unterminated} ({Predecessor:} 10. Bxa6 Nxa6 11. Ne5 Nc7 {½-½ (77) Ni,H (2671)-Meier,G (2650) Riadh 2017}) 10... Bxd3 {[%emt 0:02:47]} 11. Qxd3 {[%emt 0:00:04]} Nc6 {[%emt 0:01:17] unterminated} 12. Ne5 {[%emt 0:09:19] unterminated} Ne7 {[%emt 0:16:48] unterminated} 13. O-O {[%emt 0:02:18] unterminated} c4 {[%emt 0:04:14] unterminated} 14. Qe2 {[%emt 0:11:29]} b5 {[%emt 0:00:11] unterminated} 15. b4 {[%emt 0:02:07] unterminated} (15. e4 $11 {keeps the balance.}) 15... a5 {[%emt 0:06:55]} 16. a3 {[%emt 0:00:50] unterminated} Ra6 {[%emt 0:00:12] unterminated} 17. bxa5 {[%emt 0:18:04] unterminated} Rxa5 {[%emt 0:08:34] unterminated} 18. Nb1 {[%emt 0:00:05] unterminated} Rfa8 {[%emt 0:03:33] unterminated} 19. Ra2 {[%emt 0:08:26] unterminated} Ne4 {[%emt 0:04:49] unterminated} 20. Rc1 {[%emt 0:02:14] unterminated} f6 {[%emt 0:05:48]} 21. Nf3 {[%emt 0:01:38]} Nc6 {[%emt 0:00:16]} 22. Rb2 {[%emt 0:07:18]} Rxa3 {[%emt 0:03:26]} 23. Nxa3 {[%emt 0:01:40]} Qxa3 {[%emt 0:00:20]} 24. Qc2 {[%emt 0:15:01]} b4 {[%emt 0:01:46]} 25. Re1 {[%emt 0:01:35]} b3 {[%emt 0:13:11]} 26. Qc1 {[%emt 0:00:49]} Qa5 {[%emt 0:00:03] normal} 27. Nd2 {[%emt 0:01:45]} Nxc3 {[%emt 0:01:05] normal} 28. Nxb3 {[%emt 0:02:26]} cxb3 {[%emt 0:00:42]} 29. Rxb3 {[%emt 0:00:04] normal} Ne4 {[%emt 0:00:25]} 30. Re2 {[%emt 0:00:35] normal} Ne7 {[%emt 0:02:34] normal} 31. Rc2 $19 {[%emt 0:00:48] normal} Kf7 {[%emt 0:03:19]} 32. Rc7 {[%emt 0:02:50] normal} Qxc7 {[%emt 0:00:12] normal} 0-1

[Event "DVM U20 2019"]
[Site "Braunschweig"]
[Date "2019.12.30"]
[Round "7"]
[White "Doll, Alexander"]
[Black "Joeres, Stefan"]
[Result "1/2-1/2"]
[ECO "B33"]
[WhiteElo "2127"]
[BlackElo "2201"]
[Annotator "ChessBase"]
[PlyCount "36"]
[EventDate "2019.12.27"]
[EventType "team-tourn"]
[EventRounds "7"]
[EventCountry "GER"]
[SourceTitle "playchess.com"]
[Source "ChessBase"]
[SourceQuality "1"]
[WhiteTeam "OSG Baden-Baden"]
[BlackTeam "Karlsruher SF"]
[TimeControl "40/5400+30:1800+30"]

1. e4 {[%emt 0:00:00]} c5 {[%emt 0:00:00]} 2. Nf3 {[%emt 0:00:00]} Nc6 {[%emt 0:00:00]} 3. d4 {[%emt 0:00:44]} cxd4 {[%emt 0:00:00]} 4. Nxd4 {[%emt 0:00:05]} Nf6 {[%emt 0:00:00]} 5. Nc3 {[%emt 0:00:14]} e5 {[%emt 0:00:00]} 6. Ndb5 {[%emt 0:00:33]} d6 {[%emt 0:00:00]} 7. Bg5 {[%emt 0:00:09]} a6 {[%emt 0:00:00]} 8. Na3 {[%emt 0:00:05]} b5 {[%emt 0:00:00]} 9. Nd5 {[%emt 0:00:07]} Be7 {[%emt 0:00:03]} 10. Bxf6 {[%emt 0:00:05]} Bxf6 {[%emt 0:00:01]} 11. c4 {[%emt 0:00:08]} b4 {[%emt 0:00:03]} 12. Nc2 {[%emt 0:00:04]} O-O {[%emt 0:00:03]} 13. Ncxb4 {[%emt 0:05:15]} Nxb4 {[%emt 0:01:40]} 14. Nxb4 {[%emt 0:00:12]} Qb6 {[%emt 0:00:32]} 15. Qb3 Qd4 {[%emt 0:09:13]} 16. Qc2 {[%emt 0:32:21]} Rb8 {[%emt 0:04:11]} 17. Rd1 Qb6 {[%emt 0:02:26]} 18. Nd5 {[%emt 0:13:37]} Qxb2 {[%emt 0:02:17] normal} 1/2-1/2

[Event "DVM U20 2019"]
[Site "Braunschweig"]
[Date "2019.12.30"]
[Round "7"]
[White "Hoffmann, Jens"]
[Black "Thomsen, Phil"]
[Result "1-0"]
[ECO "B38"]
[WhiteElo "2113"]
[BlackElo "2147"]
[Annotator "NA"]
[PlyCount "81"]
[EventDate "2019.12.27"]
[EventType "team-tourn"]
[EventRounds "7"]
[EventCountry "GER"]
[SourceTitle "playchess.com"]
[Source "ChessBase"]
[SourceQuality "1"]
[WhiteTeam "SF HN-Biberach"]
[BlackTeam "Sges Bensheim"]
[TimeControl "40/5400+30:1800+30"]

1. e4 {[%emt 0:00:00]} c5 {[%emt 0:00:00]} 2. Nf3 {[%emt 0:00:00]} Nc6 {[%emt 0:00:00]} 3. d4 {[%emt 0:00:00]} cxd4 {[%emt 0:00:00]} 4. Nxd4 {[%emt 0:00:00]} g6 {[%emt 0:00:00]} 5. c4 {[%emt 0:00:00]} Bg7 {[%emt 0:00:00]} 6. Be3 {[%emt 0:00:02]} Nf6 {[%emt 0:00:00]} 7. Nc3 {[%emt 0:00:06]} O-O {[%emt 0:00:00]} 8. Be2 {[%emt 0:00:11]} d6 {[%emt 0:00:00]} 9. O-O {[%emt 0:00:05]} Bd7 {[%emt 0:00:22]} 10. Nc2 {[%emt 0:00:05]} a5 {[%emt 0:00:11] unterminated} 11. f4 {[%emt 0:09:27] unterminated} a4 {[%emt 0:12:30] unterminated} 12. Rc1 {[%emt 0:08:40] unterminated} Qa5 {[%emt 0:03:12] unterminated} 13. c5 $14 {[%emt 0:17:49]} Rad8 {[%emt 0:10:09]} 14. cxd6 {[%emt 0:02:15]} exd6 {[%emt 0:00:15]} 15. Na3 {[%emt 0:18:36]} Bc8 {[%emt 0:23:06]} 16. Nc4 {[%emt 0:02:11]} Qb4 {[%emt 0:02:44]} 17. a3 {[%emt 0:06:38]} Qb3 {[%emt 0:00:15]} 18. Bb6 {[%emt 0:02:44]} Be6 {[%emt 0:08:17]} 19. Qxb3 {[%emt 0:03:41]} axb3 {[%emt 0:00:05]} 20. Bxd8 {[%emt 0:03:20]} Rxd8 {[%emt 0:00:04]} 21. Rfd1 {[%emt 0:08:53]} d5 {[%emt 0:06:47]} 22. exd5 {[%emt 0:09:16]} Nxd5 {[%emt 0:00:24]} 23. Nxd5 {[%emt 0:00:09]} Rxd5 {[%emt 0:01:26]} 24. Rxd5 {[%emt 0:02:54]} Bxd5 {[%emt 0:00:08]} 25. Ne5 {[%emt 0:01:49]} g5 {[%emt 0:04:25]} 26. Bc4 {[%emt 0:02:00]} gxf4 {[%emt 0:01:50]} 27. Bxd5 {[%emt 0:01:22]} Bxe5 {[%emt 0:00:41]} 28. Bxc6 {[%emt 0:00:52]} bxc6 {[%emt 0:01:10]} 29. Rxc6 {[%emt 0:00:27]} Bxb2 {[%emt 0:00:04]} 30. Rc8+ {[%emt 0:00:18]} Kg7 {[%emt 0:00:05]} 31. Rb8 {[%emt 0:00:52]} Bxa3 {[%emt 0:00:27]} 32. Rxb3 {[%emt 0:00:06]} Bc5+ {[%emt 0:00:58]} 33. Kf1 {[%emt 0:00:01]} Kg6 {[%emt 0:00:16]} 34. Ke2 {[%emt 0:00:25]} Bg1 {[%emt 0:00:18]} 35. Rh3 {[%emt 0:00:14]} h5 {[%emt 0:00:23]} 36. Kf3 {[%emt 0:01:16]} Kg5 {[%emt 0:00:18]} 37. Ke4 {[%emt 0:01:00]} Kg4 {[%emt 0:04:12]} 38. Ke5 {[%emt 0:00:22]} h4 {[%emt 0:01:28]} 39. Ke4 {[%emt 0:00:40]} f6 {[%emt 0:01:34]} 40. Kd3 {[%emt 0:00:29]} Kg5 {[%emt 0:01:25]} 41. Ke2 {[%emt 0:02:04] normal} 1-0

[Event "DVM U20 2019"]
[Site "Braunschweig"]
[Date "2019.12.30"]
[Round "7"]
[White "Meiwes, Thore"]
[Black "Holinka, Henning"]
[Result "0-1"]
[ECO "D15"]
[WhiteElo "2106"]
[BlackElo "2233"]
[Annotator "ChessBase"]
[PlyCount "52"]
[EventDate "2019.12.27"]
[EventType "team-tourn"]
[EventRounds "7"]
[EventCountry "GER"]
[SourceTitle "playchess.com"]
[Source "ChessBase"]
[SourceQuality "1"]
[WhiteTeam "SK Lehrte 1919"]
[BlackTeam "Hamburger SK"]
[TimeControl "40/5400+30:1800+30"]

1. d4 {[%emt 0:00:00]} d5 {[%emt 0:00:00]} 2. Nf3 {[%emt 0:02:43]} Nf6 {[%emt 0:00:39]} 3. c4 {[%emt 0:00:12]} c6 {[%emt 0:08:16]} 4. Nc3 {[%emt 0:01:13]} a6 {[%emt 0:03:46]} 5. c5 {[%emt 0:01:57]} g6 {[%emt 0:01:41]} 6. Bf4 {[%emt 0:00:09]} Bg7 {[%emt 0:03:59]} 7. h3 {[%emt 0:00:10]} Nbd7 {[%emt 0:10:52]} 8. e3 {[%emt 0:00:09]} O-O {[%emt 0:03:10]} 9. Be2 {[%emt 0:00:19]} h6 {[%emt 0:12:05]} 10. Bh2 {[%emt 0:03:02]} Ne4 {[%emt 0:11:05]} 11. O-O {[%emt 0:01:46]} f5 {[%emt 0:02:55]} 12. Na4 {[%emt 0:14:28]} g5 {[%emt 0:09:00]} 13. Ne5 {[%emt 0:05:46]} Bxe5 {[%emt 0:10:42]} 14. Bxe5 {[%emt 0:00:18]} Nxe5 {[%emt 0:01:19]} 15. dxe5 {[%emt 0:00:03]} f4 {[%emt 0:01:05]} 16. Qd4 {[%emt 0:05:15]} Bf5 {[%emt 0:03:42]} 17. Nb6 {[%emt 0:01:27]} Rb8 {[%emt 0:00:48]} 18. b4 {[%emt 0:05:06]} Qc7 {[%emt 0:02:39]} 19. Kh2 {[%emt 0:13:23]} e6 {[%emt 0:00:26]} 20. a4 {[%emt 0:05:19]} Qg7 21. g3 {[%emt 0:05:45]} Bxh3 {[%emt 0:08:59]} 22. Kxh3 {[%emt 0:01:16]} f3 {[%emt 0:00:22]} 23. Bxf3 {[%emt 0:09:08]} Rxf3 {[%emt 0:00:05]} 24. Kg2 {[%emt 0:01:14]} Rbf8 {[%emt 0:00:20]} 25. Ra2 {[%emt 0:01:12]} Qf7 {[%emt 0:01:10] normal} 26. Qa1 {[%emt 0:01:51]} Nxg3 {[%emt 0:00:26] normal} 0-1